Cogmind - Beta 17.1 --- EXPLORER MODE // 2026.09.04 @ 18:53:31 Player: Goose Result: Core melted Performance ------------- Evolutions (0) 0 Regions Visited (1) 200 Robots Destroyed (12) 60 Value Destroyed (287) 287 Prototype IDs (3) 60 Alien Tech Used (0) 0 Bonus (7250) 7250 TOTAL SCORE: 7857 Bonus ------- Prayed to X0-1V1 5000 Major X0-1V1 Interference 2250 Cogmind --------- Core Integrity 0/450 Matter 163/300 Energy 125/125 System Corruption 0% Temperature Critical (521) Movement Core (400) Ox7 Location -10/Materials Parts ------- > --- POWER (2) -------- Ion Engine Light Ion Engine > --- PROPULSION (1) --- (None) > --- UTILITY (3) ------ Medium Storage Unit Targeting Computer X0-1V1's Piety Tracker > --- WEAPON (2) ------- Small Laser Beam Cannon (fused) > --- INVENTORY (10) --- Light Treads Light Treads Light Treads Terrain Scanner EM Pulse Gun Grenade Launcher Mining Laser Mining Laser Peak State ------------ > --- POWER ------------ Ion Engine Light Ion Engine > --- PROPULSION ------- Light Treads > --- UTILITY ---------- Medium Storage Unit Targeting Computer X0-1V1's Piety Tracker > --- WEAPON ----------- Small Laser Beam Cannon > --- INVENTORY -------- Light Treads Terrain Scanner Propulsion Shielding Utility Shielding EM Pulse Gun Battle Rifle Battle Rifle Mining Laser Mining Laser [Rating: 21] Favorites ----------- Power Ion Engine Engine Ion Engine Propulsion Light Treads Treads Light Treads Utility Medium Storage Unit Device X0-1V1's Piety Tracker Storage Medium Storage Unit Processor Targeting Computer Weapon Small Laser Energy Gun Small Laser Energy Cannon Beam Cannon Launcher Grenade Launcher Build | -11 -10 ------- Run | Yrd Mat Slots Evolved 1 | . 1 Power . | . . Propulsion . | . . Utility . | . . Weapon 1 | . 1 Parts Attached 13 | 7 6 Power 2 | 1 1 Engine 2 | 1 1 Core . | . . Reactor . | . . Propulsion 3 | 2 1 Treads 3 | 2 1 Leg . | . . Wheel . | . . Hover . | . . Flight . | . . Utility 3 | 2 1 Device 1 | . 1 Storage 1 | 1 . Processor 1 | 1 . Hackware . | . . Protection . | . . Artifact . | . . Weapon 5 | 2 3 Energy Gun 3 | 2 1 Energy Cannon 1 | . 1 Ballistic Gun . | . . Ballistic Cannon . | . . Launcher 1 | . 1 Special Weapon . | . . Impact Weapon . | . . Slashing Weapon . | . . Piercing Weapon . | . . Special Melee Weapon . | . . Unidentified Prototypes 1 | . 1 Parts Lost 1 | . 1 Power . | . . Propulsion . | . . Utility . | . . Weapon 1 | . 1 Highest Loss Streak 1 | . 1 To Critical Strikes . | . . Average Backups 8 | 3 8 Power . | . . Propulsion 1 | . 2 Utility 2 | 1 2 Weapon 3 | . 3 Tool/Special . | . . Unused Backups 12 | . 12 Power . | . . Propulsion 1 | . 1 Utility 5 | . 5 Weapon 6 | . 6 Tool/Special . | . . Average Slot Usage (%) 95 | . 95 Engine 20 | . 20 Treads 15 | . 15 Device 7 | . 7 Storage 12 | . 12 Processor 12 | . 12 Energy Gun 18 | . 18 Energy Cannon 7 | . 7 Peak Build Rating 21 | 7 21 Average Rating 14 | 5 15 On Entrance 3 | . 7 Avg Prop Armor Cover (%) 10 | . 10 Naked Turns . | . . Heaviest Build 25 | 18 25 Greatest Support 40 | 40 40 Greatest Overweight (x) 7 | . 7 Average Overweight (x) . | . 1 Largest Inventory Capacity 10 | 10 10 Average Capacity 9 | 9 10 Most Carried 10 | 7 10 Average Carried 8 | 3 8 Final Capacity 10 | 10 10 Final Carried 8 | 5 8 Class Distribution -------------------- 72% | Hacker-Mutant 27% | Hacker-Gunner Dominant Class ---------------- Hacker-Mutant | -10/Materials Resources | -11 -10 ----------- Run | Yrd Mat Matter Collected 410 | 203 207 Remotely . | . . Salvage Created 335 | . 335 Parts 14 | . 14 Haulers Intercepted . | . . Recyclers Shooed 1 | . 1 Parts Field Recycled . | . . Retrieved Matter . | . . Parts Self-Destructed . | . . Prevented . | . . Parts Restored . | . . Kills | -11 -10 ------- Run | Yrd Mat Combat Hostiles Destroyed 9 | . 9 Guns 2 | . 2 Cannons 1 | . 1 AOE 4 | . 4 Classes Destroyed 5 | . 5 Worker 1 | . 1 Watcher 2 | . 2 Swarmer 4 | . 4 Grunt 4 | . 4 Sentry 1 | . 1 Best Kill Streak 3 | . 3 Combat Bots Only 2 | . 2 Max Kills in Single Turn 2 | . 2 Gunslinging . | . . Exploded 2 | . 2 Melee . | . . Uniques/NPCs Destroyed . | . . Combat | -11 -10 -------- Run | Yrd Mat Hostile Shots Fired 39 | . 39 Missed 12 | . 12 Hits 27 | . 27 Projectile 27 | . 27 Critical Strikes 1 | . 1 Part Disruptions 2 | . 2 Damage Taken 658 | . 658 Core 488 | . 488 Absorbed by Shields . | . . Ignored by Resistances 153 | . 153 Core Remaining (%) 100 | 100 . Volleys Fired 22 | . 22 Largest 2 | . 2 Hottest 100 | . 100 Shots Fired 45 | . 45 Gun 30 | . 30 Cannon 12 | . 12 Launcher 3 | . 3 Special . | . . Kinetic . | . . Thermal 32 | . 32 Explosive 3 | . 3 Electromagnetic 10 | . 10 Robot Hit Streak 9 | . 9 Robot Miss Streak 2 | . 2 Penetration Max . | . . Secondary Targets . | . . Shots Hit Robots 26 | . 26 Core Hits 14 | . 14 Critical Kills 1 | . 1 Critical Parts Destroyed . | . . Critical Strikes 1 | . 1 Meltdown 1 | . 1 Melee Attacks . | . . Impact . | . . Slashing . | . . Piercing . | . . Sneak Attacks . | . . Combat Hostiles . | . . Follow-up Attacks . | . . Damage Inflicted 469 | . 469 Guns 199 | . 199 Cannons 86 | . 86 Explosions 184 | . 184 Melee . | . . Ramming . | . . Kinetic . | . . Thermal 218 | . 218 Explosive 184 | . 184 Electromagnetic 67 | . 67 Impact . | . . Slashing . | . . Piercing . | . . Highest Corruption 3 | . 3 Average Corruption 1 | . 1 Corruption Purged . | . . Corruption Blocked . | . . Effects 4 | . 4 Message Errors 2 | . 2 Energy Discharges 1 | . 1 Alerts 1 | . 1 Overload Shots . | . . Overflow Damage . | . . Projectiles . | . . Explosions . | . . Melee . | . . Knockbacks . | . . Impact . | . . Kinetic . | . . Secondary . | . . Self-Inflicted Damage . | . . Shots . | . . Rammed . | . . Targets Rammed . | . . Kicked . | . . Crushed . | . . Highest Temperature 606 | . 606 Average Temperature 205 | . 205 Received Heat Transfer 135 | . 135 Effects 28 | . 28 Shutdowns 6 | . 6 Interference 6 | . 6 Matter Decay 3 | . 3 Short Circuit 2 | . 2 Damage (minor) 1 | . 1 Damage (major) 4 | . 4 Damage (core) 6 | . 6 Siege Activations . | . . Martial Activations . | . . Shielding Activations . | . . Robots Disrupted . | . . Combat Hostiles . | . . Robots Corrupted 1 | . 1 Combat Hostiles 1 | . 1 Parts Fried 1 | . 1 Impact Corruptions . | . . Robots Melted 1 | . 1 Combat Hostiles 1 | . 1 Parts Melted 2 | . 2 Heat Transferred 485 | . 485 Parts Sabotaged . | . . Parts Stolen . | . . Parts Stripped . | . . Power Chain Reactions . | . . Alert | -11 -10 ------- Run | Yrd Mat Maximum Alert Level 1 | . 1 Low Security (%) 85 | 100 84 Level 1 14 | . 15 Level 2 . | . . Level 3 . | . . Level 4 . | . . Level 5 . | . . High Security . | . . Max Security . | . . Peak Influence 270 | . 270 Initial . | . . Average 67 | . 74 Influence Increases 678 | . 678 Destroy 0b10 Robot/C 180 | . 180 Destroy 0b10 Robot/NC 15 | . 15 Destroy Leader 34 | . 34 Trap Triggered on 0b10 20 | . 20 Successful Hack 24 | . 24 Disable Machine 8 | . 8 Destroy Structure 7 | . 7 Lose Combat Pursuer 60 | . 60 Miscellaneous 330 | . 330 Influence Decreases 678 | . 678 Time Decay 678 | . 678 Squads Dispatched . | . . Investigation . | . . Extermination . | . . Reinforcement . | . . Assault . | . . Garrison . | . . Intercept . | . . Searches Triggered . | . . Construction Impeded . | . . Haulers Reinforced . | . . Active Scanning Responses . | . . Cargo Convoy Interrupts . | . . Stealth | -11 -10 --------- Run | Yrd Mat Distress Signals 1 | . 1 Communications Jammed . | . . Distress Signals . | . . Times Spotted 18 | . 18 Peak Tracking Total 5 | . 5 Tactical Retreats 3 | . 3 Traps | -11 -10 ------- Run | Yrd Mat Traps Triggered 1 | . 1 Indirectly . | . . Trap Hack Attempts . | . . Triggered . | . . Disarmed . | . . Reprogrammed 3 | . 3 Reused 2 | . 2 Traps Extracted . | . . Installed . | . . Triggered 2 | . 2 Objects Rigged 3 | . 3 Machines | -11 -10 ---------- Run | Yrd Mat Machines Disabled 2 | . 2 Max in Single Turn 1 | . 1 Machines Repaired . | . . Machines Dismantled . | . . Machines Sabotaged . | . . Overloaded Fab Kills . | . . Hacking | -11 -10 --------- Run | Yrd Mat Machines Accessed 3 | . 3 Terminals 3 | . 3 Fabricators . | . . Repair Stations . | . . Recycling Units . | . . Scanalyzers . | . . Garrison Access . | . . Total Hacks 22 | . 22 Successful 18 | . 18 Failed 4 | . 4 Catastrophic . | . . Database Lockouts . | . . Manual 21 | . 21 Terminals 22 | . 22 Fabricators . | . . Repair Stations . | . . Recycling Units . | . . Scanalyzers . | . . Garrison Access . | . . Terminal Hacks 7 | . 7 Prototype ID Bank 1 | . 1 Level Access Points 1 | . 1 Branch Access Points 1 | . 1 Emergency Access Points 1 | . 1 Terminal Index 1 | . 1 Alert Level 1 | . 1 Reprogram Traps 1 | . 1 Fabricator Hacks . | . . Repair Station Hacks . | . . Recycling Unit Hacks . | . . Scanalyzer . | . . Garrison Access Hacks . | . . Unauthorized Hacks 11 | . 11 Terminals 11 | . 11 Track 2 | . 2 Assimilate 3 | . 3 Botnet 3 | . 3 Detonate 1 | . 1 Disrupt 2 | . 2 Fabricators . | . . Repair Stations . | . . Recycling Units . | . . Scanalyzers . | . . Garrison Access . | . . Data Cores Recovered . | . . Used . | . . Hacking Detections 3 | . 3 Full Trace Events . | . . Feedback Events . | . . Feedback Blocked . | . . Robot Schematics Acquired . | . . Robots Built . | . . Authchips . | . . Time . | . . Total Robot Build Rating . | . . Part Schematics Acquired . | . . Parts Built . | . . Authchips . | . . Time . | . . Total Part Build Rating . | . . Part Studies Acquired . | . . Parts Repaired . | . . Time . | . . Parts Recycled . | . . Recycled Matter . | . . Retrieved Matter . | . . Retrieved Components . | . . Parts Scanalyzed . | . . Part Schematics Acquired . | . . Parts Damaged . | . . Bothacking | -11 -10 ------------ Run | Yrd Mat Used RIF Installer . | . . Robots Hacked . | . . Non-combat . | . . Combat . | . . Robot Hacks Applied . | . . Relay Couplers Released . | . . Fabnet Peak Effective % . | . . Robots Rewired . | . . Allies Hacked . | . . Hacks Repelled . | . . Allies | -11 -10 -------- Run | Yrd Mat Total Allies . | . . Largest Group . | . . Highest-Rated Group . | . . Highest-Rated Ally . | . . Total Orders . | . . Ally Attacks . | . . Total Damage . | . . Kills . | . . Allies Corrupted . | . . Allies Melted . | . . X0-1V1 Amusement Gains 108 | . 108 Average Entertainment 8 | . 8 Good Acts 9 | . 9 Bad Acts 12 | . 12 Intel | -11 -10 ------- Run | Yrd Mat Active Infowar (turns) . | . . Robot Analysis Total . | . . Derelict Logs Recovered . | . . Drone Launches . | . . Drone Recoveries . | . . Exploration | -11 -10 ------------- Run | Yrd Mat Turns Passed 1606 | 161 1445 Spaces Moved 700 | 93 607 Core 62 | 3 59 Treads 638 | 90 548 Legs . | . . Wheels . | . . Hover . | . . Flight . | . . Fastest Speed 50 | 50 160 Average Speed 207 | 156 215 Slowest Speed 400 | 160 400 Overloaded Moves . | . . Propulsion Burnouts . | . . Robots Hopped . | . . Potential Cave-ins . | . . Cave-ins Triggered . | . . Exploration Rate (%) 38 | 4 73 Regions Visited 1 Branch Regions . Pre-discovered Areas . | . . Known Exits Taken 1 | 1 . Unknown Exits Taken . | . . Scrap Searched . | . . Spaces Dug . | . . Terrain Destroyed 7 | . 7 Melee . | . . Projectile . | . . AOE 7 | . 7 Terrain Rammed . | . . Walls Destroyed . | . . Machines Disabled . | . . Actions | -11 -10 --------- Run | Yrd Mat Total 813 | 106 707 Wait 45 | . 45 Move 699 | 92 607 Hop . | . . Pick Up 21 | 7 14 Fast Attach 7 | 5 2 Attach 5 | 2 3 Detach . | . . Swap 6 | . 6 Drop 8 | . 8 Fire 22 | . 22 Melee . | . . Ram . | . . Kick . | . . Crush . | . . Escape Stasis . | . . Rewire . | . . Trap . | . . Miscellaneous . | . . Route ------- -11/Scrapyard -10/Materials (discovered 5 exits: *Mat x3 / *Min / *Sub) History --------- Turn | Location | Event 48 | -11/Scrapyard | Identified exit to Materials 48 | -11/Scrapyard | Discovered exit to Materials (range 16) 162 | -11/Scrapyard | Entered Materials 162 | -10/Materials | Evolved 1 slot: Weapon x1 193 | -10/Materials | Identified exit to Mines 210 | -10/Materials | Identified exit to Subcaves 210 | -10/Materials | Discovered exit to Subcaves (range 9) 222 | -10/Materials | Prayed at D.C.S.S. Altar Unit 316 | -10/Materials | Build established: Hacker-Gunner 425 | -10/Materials | Identified exit to Materials 425 | -10/Materials | Discovered exit to Materials (range 16) 532 | -10/Materials | X0-1V1 mutated your Weapon slot to Power slot 646 | -10/Materials | X0-1V1 added 0b10 threat records associated with you (minor) 649 | -10/Materials | Core integrity permanently improved by X0-1V1 (+200) 657 | -10/Materials | X0-1V1 foreshadows a heat wave 707 | -10/Materials | X0-1V1 sent you into danger 723 | -10/Materials | X0-1V1 activates XOMVISION 729 | -10/Materials | X0-1V1 mutated your Propulsion slot to Utility slot 739 | -10/Materials | X0-1V1 added 0b10 threat records associated with you (considerable) 757 | -10/Materials | Build established: Hacker-Mutant 1011 | -10/Materials | Ambient heat levels rising (+10) 1164 | -10/Materials | X0-1V1 put everyone to sleep 1446 | -10/Materials | Ambient heat levels rising (+10) 1594 | -10/Materials | Core integrity fell below 50% 1600 | -10/Materials | Core integrity fell below 20% 1608 | -10/Materials | Core melted Last Messages --------------- 01598_ Overheating: Core damaged (-76). 01599_ Overheating: Lgt. Ion Engine damaged (-5). 01600_ Overheating: Core damaged (-85). 01600_ X0-1V1 is interested. 01600_ K-01 Serf heat damages Lgt. Ion Engine, Wheel. 01601_ K-01 Serf heat spikes uncontrollably. 01602_ Beam Cannon broken. 01602_ Overheating: Short circuit. 01602_ K-01 Serf heat damages Sml. Matter Pod, Lgt. Ion Engine, Broken Wheel. 01602_ K-01 Serf heat spikes uncontrollably. 01603_ K-01 Serf collects debris. 01604_ K-01 Serf heat damages Sml. Matter Pod. 01604_ K-01 Serf heat damages core (-3). 01605_ K-01 Serf heat damages Lgt. Ion Engine. 01606_ Power failure, Lgt. Ion Engine shutdown. 01606_ K-01 Serf heat damages Med. Matter Pod. 01607_ K-01 Serf collects debris. 01608_ Overheating: Core damaged (-81). 01608_ X0-1V1 chortles! Map ----- +----------------------------------------------------+ | ???#####???????????????########## #""""" | | ???# #???????????????# !!! # # """ | | ???# #???????????????# !!! # # | | ???# ########????????# !!! # # | | ???# # #????????# # ###+## | | ???# #"" ! #????????# # % | | ???# #"Y #????????# + | | ???# #"" #????????# # ! | | ???# +% #????????# "T" # !! | | ???# # #????????# """ ## | | ???# ##########??????########### ! % | | ???# #######%###????????#> # ! | | ???# ^ #????????## + | | ???# #????????#X # | | ???# T #????????## # | | ???# %^^ % #?????????###### | | ???# #????????########+##### | | ???# #????????# ## | | ???# % +????????# """ ## | | ???# #### % %#????????# """"" ## | | ???######## """ #????????# """"" ## | | ?# +% """ #????????# """"" ## | | ?# """ # """ #????????# """ ## | | ??? """??# %#????????# ## | | ???? "????# !%##############+######## % | | ??????????# k*|@ %% | | ??????????# % % | | ??????????#k " % | | ??????????# T %% """ " "" | | ??????????# """"" "" | | ??????????# """"" " | | ??????????# % | | ??????????# % % | | ????????? """"" " % | | ????????# < """"" " % | | ????????# """"" "" | | ????????######+##### % | | ????????????????/=?# % | | ????????????????!=?# % % | | ????????????????=??# | | ???????????????????# | | ??????????????????]? ######### | | ?????????????????????????####### * #?#### | | ??????????????????????????????# #????### | | ??????????????!???????????????# ########? | | ?????????????????????=??######## # #? | | ????????????????????????#! # # """ #? | | ????????????????????????# # # """ !#? | | ????????????????????????#""" ! + + """! # | | ????????????????????????#""" # # !# | +----------------------------------------------------+ Best States ------------- Heat Dissipation 25 Energy Generation 15 Energy Capacity 275 Matter Stores 300 Matter Capacity 300 Sight Range 16 Terrain Scan Density 10 Resistance: KI 35 Resistance: TH 35 Resistance: EX 35 Resistance: EM 35 Resistance: I 35 Resistance: S 35 Resistance: P 35 Evasion (%) 40 Targeting Accuracy 5 Recoil Reduction 2 Offensive Hacking 20 Item Schematics ----------------- None Robot Schematics ------------------ None Fabricated ------------ Nothing Repaired ---------- Nothing Studied --------- None Alien Tech Used ----------------- None Achievements -------------- None Challenges ------------ None Game ------ Seed AnalysisHardenedAmplifier Manual? 0 Play Time 00:17:27 Cumulative 571.6 hours Start 2026.09.04 @ 18:32:15 End 2026.09.04 @ 18:53:31 Sessions 1 Manual Loads 0 Difficulty Explorer Special Mode None Game No. 45 Rogue 5 Adventurer 1 Explorer 39 Win Type - Total 9 Types 9/0/0/0/0/0/0/0/0/0 Lore% 60 Gallery% 62 Achievement% 54 Wizard Run 0 Options --------- Layout 0 ASCII 0 Keyboard 0 Movement Mouse Keybinds 0 Fullscreen 1 Font 18/X11 Map View 38x25 Zoom Use 98% Tactical HUD 1 Map Filters NONE Filters NONE Steam 1 RUN: 8985a20f-70c2-439a-9e2e-1a051b9bf6f7